Cogmind - Beta 16 @@@ ROGUE MODE // 2025.12.19 @ 20:40:32 // Winter2019/RPGLIKE Player: Gallgagger Result: Destroyed by H-66 Slayer with Gauss Rifle Performance ------------- Evolutions (4) 2000 Regions Visited (12) 2400 Robots Destroyed (614) 3070 Value Destroyed (26230) 26230 Prototype IDs (15) 300 Alien Tech Used (0) 0 Bonus (23079) 23079 TOTAL SCORE: 57079 Bonus ------- Triggered High Security 2000 High Alert Combat Kills 18674 Follower Combat Kills 1274 Destroyed Unchained 1000 Entered Garrisons 200 Friendly Fire -69 Cogmind --------- Core Integrity 0/1500 Matter 600/600 Energy 185/210 System Corruption 10% Temperature Cool (17) Movement Treading (70) Location -6/Factory Parts ------- > --- POWER (2) -------- Light Nuclear Core Micro Nuclear Core > --- PROPULSION (5) --- Improved Medium Treads DW-4LL's Griptreads DW-4LL's Griptreads > --- UTILITY (9) ------ Triangulator Experimental Armor Integrity Analyzer Experimental Weapon Cycler DW-4LL's Blast Wall > --- WEAPON (4) ------- Enhanced Autogun Enhanced Autogun Enhanced Autogun Rocket Array > --- INVENTORY (3) ---- Protomatter-63 Deploy-a-Sentry Deploy-a-Sentry Peak State ------------ > --- POWER ------------ Light Nuclear Core Micro Nuclear Core > --- PROPULSION ------- Improved Medium Treads DW-4LL's Griptreads DW-4LL's Griptreads > --- UTILITY ---------- Triangulator Experimental Armor Integrity Analyzer Experimental Weapon Cycler Medium Reactive Plating Medium Reflective Plating DW-4LL's Blast Wall > --- WEAPON ----------- Enhanced Autogun Enhanced Autogun Enhanced Autogun Rocket Array > --- INVENTORY -------- Deploy-a-Sentry Deploy-a-Sentry [Rating: 139] Favorites ----------- Power Light Nuclear Core Engine Ion Engine Power Core Light Nuclear Core Propulsion Gravmag System Treads DW-4LL's Griptreads Leg Improved Aluminum Leg Wheel Wheel Hover Unit Gravmag System Flight Unit Flight Unit Utility Weapon Cycler Device Weapon Cycler Processor Experimental Armor Integrity Analyzer Hackware Hacking Suite Protection Hardened Medium Armor Plating Weapon Autogun Energy Gun Beamcaster Ballistic Gun Autogun Ballistic Cannon Mini Assault Cannon Launcher Rocket Array Special Weapon Mining Laser Impact Weapon Great Maul Build | -11 -10 -10 -10 -9 -8 -8 -8 -7 -7 -7 -7 -6 ------- Run | Yrd Mat Min Exi Min Mat Gar Mat Fac Was Fac Sto Fac Slots Evolved 16 | 3 4 1 . 1 2 2 . 1 . 1 . 1 Power 1 | . 1 . . . . . . . . . . . Propulsion 4 | 1 1 . . . 1 1 . . . . . . Utility 8 | 1 . 1 . 1 1 1 . 1 . 1 . 1 Weapon 3 | 1 2 . . . . . . . . . . . Parts Attached 81 | 7 11 6 . . 12 5 17 11 . 5 5 2 Power 6 | 1 . 1 . . 3 . . 1 . . . . Engine 3 | 1 . . . . 2 . . . . . . . Core 3 | . . 1 . . 1 . . 1 . . . . Reactor . | . . . . . . . . . . . . . Propulsion 28 | 2 7 1 . . 3 4 7 1 . . 2 1 Treads 3 | . . . . . . . . . . . 2 1 Leg 8 | . 3 1 . . 3 1 . . . . . . Wheel 2 | 2 . . . . . . . . . . . . Hover 11 | . . . . . . 3 7 1 . . . . Flight 4 | . 4 . . . . . . . . . . . Utility 26 | 2 . 3 . . 3 1 8 4 . 1 3 1 Device 10 | 2 . . . . 1 . 5 . . . 1 1 Storage . | . . . . . . . . . . . . . Processor 2 | . . . . . . . . . . 1 1 . Hackware 6 | . . . . . 2 . 2 2 . . . . Protection 8 | . . 3 . . . 1 1 2 . . 1 . Artifact . | . . . . . . . . . . . . . Weapon 21 | 2 4 1 . . 3 . 2 5 . 4 . . Energy Gun 3 | . . . . . 2 . 1 . . . . . Energy Cannon . | . . . . . . . . . . . . . Ballistic Gun 12 | 2 4 . . . 1 . 1 4 . . . . Ballistic Cannon 1 | . . . . . . . . 1 . . . . Launcher 3 | . . . . . . . . . . 3 . . Special Weapon 1 | . . 1 . . . . . . . . . . Impact Weapon 1 | . . . . . . . . . . 1 . . Slashing Weapon . | . . . . . . . . . . . . . Piercing Weapon . | . . . . . . . . . . . . . Special Melee Weapon . | . . . . . . . . . . . . . Unidentified Prototypes 12 | . . . . . 3 . 2 1 . 2 4 . Corrupted Parts 1 | . . . . . . . . . . . 1 . System Corruption 1 | . . . . . . . . . . . 1 . Parts Lost 4 | . . . . . . 1 1 . . . . 2 Power . | . . . . . . . . . . . . . Propulsion 1 | . . . . . . . 1 . . . . . Utility 3 | . . . . . . 1 . . . . . 2 Weapon . | . . . . . . . . . . . . . Highest Loss Streak 1 | . . . . . . 1 1 . . . . 1 To Critical Strikes . | . . . . . . . . . . . . . Average Backups . | . . 1 . . . . . . 1 . 1 . Power . | . . . . . . . . . . . . . Propulsion . | . . . . . . . . . . . . . Utility . | . . . . . . . . . 1 . . . Weapon . | . . 1 . . . . . . . . 1 . Tool/Special . | . . . . . . . . . . . . . Unused Backups 2 | . . . 2 . . . . . . . . . Power . | . . . . . . . . . . . . . Propulsion . | . . . . . . . . . . . . . Utility 1 | . . . 1 . . . . . . . . . Weapon 1 | . . . 1 . . . . . . . . . Tool/Special . | . . . . . . . . . . . . . Average Slot Usage (%) 94 | . 92 98 100 99 95 92 97 99 100 99 89 71 Engine 2 | . 12 8 8 7 5 . . . . . . . Core 9 | . . 7 8 7 6 11 11 11 11 10 10 10 Treads 1 | . . . . . . . . . . . 3 14 Leg 10 | . 3 26 25 24 25 25 2 . . . . . Hover 11 | . . . . . . 2 26 27 27 26 17 . Flight 1 | . 17 . . . . . . . . . . . Device 11 | . 24 9 . . . 5 13 22 22 21 15 6 Hackware 3 | . . . . . 7 5 6 3 5 5 3 . Protection 13 | . . 11 25 24 20 14 10 10 11 10 11 13 Energy Gun 2 | . . . . . 4 5 5 2 . . . . Ballistic Gun 21 | . 28 34 33 32 22 18 17 16 16 15 15 15 Peak Build Rating 139 | 9 19 28 30 30 51 55 67 75 75 79 129 139 Average Rating 59 | 5 11 24 29 30 42 51 60 73 75 75 93 134 On Entrance 49 | . 9 19 28 30 30 51 55 67 75 75 79 129 Avg Prop Armor Cover (%) 2 | . . . . . 2 6 4 . . . 9 1 Naked Turns . | . . . . . . . . . . . . . Heaviest Build 120 | 10 19 44 44 44 49 47 40 44 43 58 119 120 Greatest Support 155 | 31 44 48 48 48 72 87 52 53 53 58 155 155 Greatest Overweight (x) 1 | . 1 . . . . . 1 . . . 1 . Average Overweight (x) . | . . . . . . . . . . . . . Largest Inventory Capacity 3 | 2 2 2 3 3 3 3 3 3 3 3 3 3 Average Capacity 2 | 2 2 2 2 3 3 3 3 3 3 3 3 3 Most Carried 3 | . 2 2 3 3 3 3 3 3 3 3 3 3 Average Carried 2 | . 1 1 2 3 3 3 3 3 3 2 3 2 Final Capacity 3 | 2 2 2 3 3 3 3 3 3 3 3 3 3 Final Carried 3 | . 2 2 3 3 3 3 3 3 3 3 3 3 Class Distribution -------------------- 39% | Scavenger-Gunner 25% | Scavenger-Tank 16% | Tank 5% | Hacker-Tank 4% | Gunner Dominant Class ---------------- Scavenger-Mutant | -10/Materials Gunner | -10/Mines Tank | -10/Exiles Tank | -9/Mines Hacker-Tank | -8/Materials Scavenger-Tank | -8/Garrison Scavenger-Tank | -8/Materials Scavenger-Gunner | -7/Factory Scavenger-Gunner | -7/Waste Scavenger-Gunner | -7/Factory Scavenger-Gunner | -7/Storage Scavenger-Gunner | -6/Factory Resources | -11 -10 -10 -10 -9 -8 -8 -8 -7 -7 -7 -7 -6 ----------- Run | Yrd Mat Min Exi Min Mat Gar Mat Fac Was Fac Sto Fac Matter Collected 15561 | 346 558 522 48 344 1449 1178 1852 1905 691 2505 1568 2595 Remotely . | . . . . . . . . . . . . . Salvage Created 21467 | 160 708 769 48 433 1681 1206 3034 2115 814 4421 2199 3879 Parts 1152 | 7 80 46 . 19 116 78 151 171 22 192 135 135 Haulers Intercepted 12 | . 1 . . . 2 . 5 . . 1 2 1 Recyclers Shooed 2 | . 1 . . . . . . . . . . 1 Parts Field Recycled . | . . . . . . . . . . . . . Retrieved Matter . | . . . . . . . . . . . . . Parts Self-Destructed . | . . . . . . . . . . . . . Prevented . | . . . . . . . . . . . . . Parts Restored . | . . . . . . . . . . . . . Kills | -11 -10 -10 -10 -9 -8 -8 -8 -7 -7 -7 -7 -6 ------- Run | Yrd Mat Min Exi Min Mat Gar Mat Fac Was Fac Sto Fac Combat Hostiles Destroyed 541 | . 31 24 . 11 45 27 58 56 5 116 62 106 Guns 418 | . 31 24 . 11 45 27 58 56 5 66 33 62 AOE 123 | . . . . . . . . . . 50 29 44 Classes Destroyed 23 | 2 4 2 . 1 3 2 4 2 1 1 . 1 Worker 10 | . 1 . . . . . 4 1 . 3 . 1 Builder 8 | . . . . . . . 4 3 . . . 1 Tunneler 7 | 4 1 1 . . . . . . . 1 . . Hauler 12 | . 1 . . . 2 . 5 . . 1 2 1 Recycler 8 | 1 . . . . 3 . 1 1 . . . 2 Mechanic 15 | . . . . . . . . . . 10 3 2 Operator 7 | . . . . . . . 3 4 . . . . Watcher 5 | . . . . . . . 1 3 . . . 1 Swarmer 80 | . 9 8 . . 12 3 8 20 . 6 2 12 Cutter 3 | . . . . . . . . 3 . . . . Saboteur 7 | . . . . . . . . . . . . 7 Grunt 249 | . 22 12 . 10 18 10 36 17 . 49 26 49 Brawler 25 | . . . . . . . . 2 . 11 2 10 Duelist 25 | . . . . . 1 . 1 1 . 10 5 7 Protector 17 | . . . . . . . 1 . . 8 3 5 Sentry 69 | . . 2 . . 9 8 8 4 . 16 13 9 Demolisher 3 | . . . . 1 . . . . . . 2 . Specialist 7 | . . . . . 4 2 . . . . 1 . Hunter 24 | . . . . . . 1 4 1 . 9 7 2 Programmer 24 | . . . . . . 4 . 8 . 5 2 5 Heavy 2 | . . . . . 1 . . . . 1 . . Compactor 5 | . . . . . . . . . 5 . . . Assembled 2 | . . 2 . . . . . . . . . . Wasp 1 | . . . . . . . . . . 1 . . Best Kill Streak 40 | 5 7 5 . 3 12 4 17 7 2 40 19 26 Combat Bots Only 33 | . 7 5 . 3 11 4 16 7 2 33 17 26 Max Kills in Single Turn 10 | 1 2 2 . 2 2 2 2 2 1 7 10 5 Gunslinging 1 | . 1 1 . 1 1 1 1 1 . 1 1 1 Exploded 9 | . . . . . . . . . . 7 9 5 Melee . | . . . . . . . . . . . . . Uniques/NPCs Destroyed 1 | . . . . . . . . . . . 1 . DW-4LL (-7/Storage) Combat | -11 -10 -10 -10 -9 -8 -8 -8 -7 -7 -7 -7 -6 -------- Run | Yrd Mat Min Exi Min Mat Gar Mat Fac Was Fac Sto Fac Hostile Shots Fired 1820 | . 77 35 . 16 149 138 137 195 . 184 393 496 Missed 683 | . 25 17 . 3 46 30 44 93 . 81 163 181 Hits 1137 | . 52 18 . 13 103 108 93 102 . 103 230 315 Melee 10 | . . 1 . . . . 1 1 . 1 1 5 Projectile 1127 | . 52 17 . 13 103 108 92 101 . 102 229 310 AOE 3 | . . . . . . . . 3 . . . . Critical Strikes 40 | . . . . . 4 11 4 2 . 4 3 12 Actively Blocked 23 | . . . . . . 11 4 2 . 4 2 . Damage Taken 13566 | . 546 230 . 128 1397 1363 1555 1308 . 1251 1764 4024 Core 8283 | . 445 182 . 84 841 845 1061 861 . 818 1114 2032 Absorbed by Shields 25 | . . . . . . 25 . . . . . . Reduced by Siege Mode 1 | . . . . . . . . . . . . 1 Redirected to Core 7529 | . 314 167 . 75 771 733 943 789 . 777 1039 1921 Ignored by Resistances 1959 | . . . . 21 310 176 115 85 . 151 380 721 Regen/Repaired (Parts) 61 | . . . . . . . 61 . . . . . Core Remaining (%) 82 | 100 . . . 100 . . 72 . . . 59 . Volleys Fired 1164 | 19 71 33 5 19 96 84 132 168 53 178 112 194 Largest 4 | 2 3 4 4 4 4 4 4 4 3 3 4 3 Hottest 150 | 40 69 100 92 92 146 146 148 150 75 75 120 75 Shots Fired 3618 | 38 156 120 20 76 384 294 527 493 151 503 316 540 Gun 3538 | 38 156 116 20 76 384 294 527 459 147 489 308 524 Cannon 38 | . . . . . . . . 34 4 . . . Launcher 38 | . . . . . . . . . . 14 8 16 Special 4 | . . 4 . . . . . . . . . . Kinetic 3243 | 38 156 116 20 76 324 210 396 435 151 489 308 524 Thermal 337 | . . 4 . . 60 84 131 58 . . . . Explosive 38 | . . . . . . . . . . 14 8 16 Electromagnetic . | . . . . . . . . . . . . . Robot Hit Streak 61 | 6 15 20 4 16 23 28 36 25 48 37 38 61 Robot Miss Streak 5 | 4 3 4 2 2 3 4 2 5 1 3 3 2 Penetration Max . | . . . . . . . . . . . . . Secondary Targets 100 | . 4 5 . 1 12 11 9 11 1 20 6 20 Max Gunslinging Chain 2 | . 1 2 . 1 1 1 1 1 1 1 1 2 Shots Hit Robots 2696 | 22 101 75 11 48 271 189 383 339 140 414 259 444 Core Hits 1666 | 9 49 35 5 15 94 56 140 127 24 438 245 429 Critical Kills 10 | . 1 1 . 1 . 1 . 1 . 1 1 3 Critical Parts Destroyed 13 | . 1 . . . 1 . 2 1 . 3 2 3 Critical Strikes 52 | . 2 1 . 1 5 8 14 7 1 4 3 6 Burn 28 | . . . . . 4 7 12 5 . . . . Destroy 24 | . 2 1 . 1 1 1 2 2 1 4 3 6 Melee Attacks 3 | . . . . . . . . . . 2 1 . Impact 3 | . . . . . . . . . . 2 1 . Slashing . | . . . . . . . . . . . . . Piercing . | . . . . . . . . . . . . . Sneak Attacks . | . . . . . . . . . . . . . Combat Hostiles . | . . . . . . . . . . . . . Follow-up Attacks . | . . . . . . . . . . . . . Damage Inflicted 68952 | 234 1348 1188 123 764 4642 3262 6916 6815 2641 15727 9797 15495 Guns 47614 | 234 1348 1186 123 761 4584 3262 6916 6769 2532 7460 4670 7769 Cannons 109 | . . . . . . . . . 109 . . . Explosions 21100 | . . . . . . . . . . 8267 5107 7726 Melee . | . . . . . . . . . . . . . Ramming 129 | . . 2 . 3 58 . . 46 . . 20 . Kinetic 42236 | 234 1348 1186 123 761 3628 2280 4463 5673 2641 7460 4670 7769 Thermal 6145 | . . . . . 956 982 2453 1096 . 399 . 259 Explosive 20432 | . . . . . . . . . . 7868 5107 7457 Electromagnetic 10 | . . . . . . . . . . . . 10 Impact . | . . . . . . . . . . . . . Slashing . | . . . . . . . . . . . . . Piercing . | . . . . . . . . . . . . . Highest Corruption 10 | . . . . . . . 4 1 1 5 10 10 Average Corruption 3 | . . . . . . . 4 1 1 2 8 3 Corruption Purged . | . . . . . . . . . . . . . Corruption Blocked . | . . . . . . . . . . . . . Effects 96 | . . . . . . . 17 4 2 27 25 21 Message Errors 24 | . . . . . . . 5 1 1 5 7 5 Matter Fused 16 | . . . . . . . 3 1 . 7 4 1 Heat Flow Errors 13 | . . . . . . . 2 1 1 2 3 4 Energy Discharges 6 | . . . . . . . 1 . . 2 2 1 Data Loss (minor) 12 | . . . . . . . 2 . . 5 3 2 Data Loss (major) 3 | . . . . . . . 1 . . 1 1 . Misfires 1 | . . . . . . . 1 . . . . . Alerts 2 | . . . . . . . . . . 2 . . Weapon Failures 19 | . . . . . . . 2 1 . 3 5 8 Overload Shots . | . . . . . . . . . . . . . Overflow Damage 226 | . . . . . . . . . . 125 23 78 Projectiles . | . . . . . . . . . . . . . Explosions 226 | . . . . . . . . . . 125 23 78 Melee . | . . . . . . . . . . . . . Knockbacks 1 | . . . . . 1 . . . . . . . Impact 1 | . . . . . 1 . . . . . . . Kinetic . | . . . . . . . . . . . . . Secondary . | . . . . . . . . . . . . . Self-Inflicted Damage 153 | . . . . . . . . 23 . . 15 115 Shots 10 | . . . . . . . . . . . 1 9 Rammed 3 | . . . . . . . . 2 . . 1 . Targets Rammed 10 | . . 1 . 2 4 . . 2 . . 1 . Kicked 7 | . . 1 . 2 4 . . . . . . . Crushed . | . . . . . . . . . . . . . Highest Temperature 326 | . 9 34 70 146 121 110 191 122 135 205 218 326 Average Temperature 42 | . 4 10 33 50 37 36 37 57 77 95 37 60 Received Heat Transfer 3862 | . 213 72 . 81 495 591 513 258 . 312 315 1012 Siege Activations 1 | . . . . . . . . . . . . 1 Total Turns 111 | . . . . . . . . . . . . 111 Longest Duration 111 | . . . . . . . . . . . . 111 Martial Activations . | . . . . . . . . . . . . . Shielding Activations . | . . . . . . . . . . . . . Robots Disrupted . | . . . . . . . . . . . . . Combat Hostiles . | . . . . . . . . . . . . . Robots Corrupted . | . . . . . . . . . . . . . Combat Hostiles . | . . . . . . . . . . . . . Parts Fried . | . . . . . . . . . . . . . Impact Corruptions . | . . . . . . . . . . . . . Robots Melted . | . . . . . . . . . . . . . Combat Hostiles . | . . . . . . . . . . . . . Parts Melted 15 | . . . . . 2 3 4 4 . 2 . . Heat Transferred 11622 | . . . . . 1961 2145 4957 2109 . 250 . 200 Parts Sabotaged . | . . . . . . . . . . . . . Parts Stolen . | . . . . . . . . . . . . . Parts Stripped . | . . . . . . . . . . . . . Power Chain Reactions 1 | . . . . . . . . . . . . 1 Alert | -11 -10 -10 -10 -9 -8 -8 -8 -7 -7 -7 -7 -6 ------- Run | Yrd Mat Min Exi Min Mat Gar Mat Fac Was Fac Sto Fac Maximum Alert Level 5 | . 2 2 . . 3 5 5 5 4 5 5 5 Low Security (%) 13 | 100 45 . . 100 20 . . . . . . . Level 1 8 | . 31 47 . . 22 . . . . . . . Level 2 12 | . 22 52 . . 51 8 . . . 1 . . Level 3 12 | . . . . . 6 29 10 11 73 36 . . Level 4 22 | . . . . . . 32 29 50 26 9 . 48 Level 5 19 | . . . . . . 29 59 36 . . 47 5 High Security 11 | . . . . . . . . 1 . 51 52 46 Max Security . | . . . . . . . . . . . . . Sterilizations 2 | . . . . . . . 1 . . 1 . . Peak Influence 4401 | 5 654 512 . 130 816 1920 2648 1976 1121 4401 3554 4254 Initial 2002 | . . 237 . . 33 527 936 1174 1100 686 2002 1617 Average 1253 | 1 273 404 . 48 372 1317 1814 1473 1054 2119 2520 2087 Influence Increases 18165 | 25 976 580 . 320 1280 1423 2284 1774 41 4333 1982 3147 Destroy 0b10 Robot/C 11200 | . 620 440 . 220 920 800 1260 1160 40 2440 1280 2020 Destroy 0b10 Robot/NC 470 | 25 15 5 . . 25 . 110 60 . 120 45 65 Destroy Leader 2026 | . 152 70 . 40 224 40 354 256 . 422 226 242 Allied During Kill 1485 | . . . . 30 44 118 114 15 1 930 233 . Trap Triggered on 0b10 10 | . . . . . . . . . . 10 . . Successful Hack 191 | . 10 . . . 2 20 14 56 . 47 20 22 Select Force Hacks 380 | . 160 50 . . . . 170 . . . . . Disable Machine 480 | . . 15 . 30 15 15 45 30 . 60 15 255 Anti-Garrison Action 500 | . . . . . . 350 . . . 150 . . Destroy Structure 628 | . 4 . . . 5 80 7 17 . 124 133 258 Partial Spotted 180 | . 15 . . . . . 45 75 . 15 30 . Lose Combat Pursuer 615 | . . . . . 45 . 165 105 . 15 . 285 Influence Decreases 14330 | 25 366 837 353 232 556 315 1622 2380 1445 913 2829 2457 Entered New Map 9374 | . . 373 353 . 55 285 984 1408 1285 295 2399 1937 Time Decay 3666 | 25 366 464 . 232 461 . 568 642 140 278 140 350 Lost Part 40 | . . . . . . 10 10 . . . . 20 Lost Ally 650 | . . . . . 40 20 60 30 20 340 140 . Purge Threat 600 | . . . . . . . . 300 . . 150 150 Squads Dispatched 134 | . 11 1 . 2 7 . 19 19 . 33 12 30 Investigation 35 | . 10 1 . 2 1 . 12 3 . 1 1 4 Extermination 10 | . . . . . . . . 7 . 2 . 1 Reinforcement 20 | . 1 . . . 4 . 4 7 . 1 3 . Assault 61 | . . . . . . . 2 2 . 25 8 24 Garrison 8 | . . . . . 2 . 1 . . 4 . 1 Intercept . | . . . . . . . . . . . . . Searches Triggered . | . . . . . . . . . . . . . Unchained Authorized 1 | . . . . . . . . . . . 1 . Construction Impeded . | . . . . . . . . . . . . . Haulers Reinforced 1 | . . . . . . . . 1 . . . . Active Scanning Responses . | . . . . . . . . . . . . . Cargo Convoy Interrupts . | . . . . . . . . . . . . . Stealth | -11 -10 -10 -10 -9 -8 -8 -8 -7 -7 -7 -7 -6 --------- Run | Yrd Mat Min Exi Min Mat Gar Mat Fac Was Fac Sto Fac Distress Signals 19 | . 3 1 . . 1 . 8 3 . . 2 1 Communications Jammed . | . . . . . . . . . . . . . Distress Signals . | . . . . . . . . . . . . . Times Spotted 766 | . 38 25 . 15 60 40 88 95 6 161 76 162 Peak Tracking Total 17 | . 4 3 . 3 7 7 14 8 4 17 17 17 Tactical Retreats 17 | . . 2 . 1 2 . 1 3 . 1 . 7 Traps | -11 -10 -10 -10 -9 -8 -8 -8 -7 -7 -7 -7 -6 ------- Run | Yrd Mat Min Exi Min Mat Gar Mat Fac Was Fac Sto Fac Traps Triggered 24 | . 3 . . . 1 4 3 3 . 2 3 5 Indirectly . | . . . . . . . . . . . . . Trap Hack Attempts . | . . . . . . . . . . . . . Triggered . | . . . . . . . . . . . . . Disarmed . | . . . . . . . . . . . . . Reprogrammed 5 | . . . . . . . . . . 5 . . Reused 1 | . . . . . . . . . . 1 . . Traps Extracted . | . . . . . . . . . . . . . Installed . | . . . . . . . . . . . . . Triggered 1 | . . . . . . . . . . 1 . . Machines | -11 -10 -10 -10 -9 -8 -8 -8 -7 -7 -7 -7 -6 ---------- Run | Yrd Mat Min Exi Min Mat Gar Mat Fac Was Fac Sto Fac Machines Disabled 38 | . . 1 . 2 1 6 3 2 . 5 1 17 Max in Single Turn 6 | . . 1 . 1 1 1 1 1 . 3 . 6 Garrison Access 5 | . . . . . . . 1 . . 3 1 . Garrison Relay 5 | . . . . . . 5 . . . . . . Machines Repaired . | . . . . . . . . . . . . . Machines Dismantled . | . . . . . . . . . . . . . Machines Sabotaged 4 | . 2 1 . . . . 1 . . . . . Overloaded Fab Kills . | . . . . . . . . . . . . . Hacking | -11 -10 -10 -10 -9 -8 -8 -8 -7 -7 -7 -7 -6 --------- Run | Yrd Mat Min Exi Min Mat Gar Mat Fac Was Fac Sto Fac Machines Accessed 80 | . 9 2 . 2 11 4 16 14 . 11 7 4 Terminals 60 | . 6 1 . 2 9 4 9 11 . 9 6 3 Fabricators 4 | . . . . . . . . 3 . . . 1 Repair Stations 3 | . 1 . . . . . 2 . . . . . Recycling Units 5 | . 2 . . . 1 . 2 . . . . . Scanalyzers 2 | . . . . . . . 2 . . . . . Garrison Access 5 | . . . . . 1 . 1 . . 2 1 . Total Hacks 190 | . 22 2 . 2 27 7 35 42 . 31 9 13 Successful 127 | . 11 2 . 2 17 4 33 28 . 17 7 6 Failed 63 | . 11 . . . 10 3 2 14 . 14 2 7 Catastrophic 4 | . . . . . . . . 1 . 1 . 2 Database Lockouts . | . . . . . . . . . . . . . Manual 150 | . 23 1 1 2 24 . 33 32 . 22 4 8 Terminals 157 | . 19 1 . 2 22 7 28 35 . 26 8 9 Fabricators 11 | . . . . . . . . 7 . . . 4 Repair Stations 3 | . 1 . . . . . 2 . . . . . Recycling Units 8 | . 2 . . . 4 . 2 . . . . . Scanalyzers 2 | . . . . . . . 2 . . . . . Garrison Access 8 | . . . . . 1 . 1 . . 5 1 . Terminal Hacks 30 | . 2 1 . . 2 4 6 4 . 5 3 3 Record 1 | . . . . . . . 1 . . . . . Part Schematic 2 | . . . . . . . 1 . . 1 . . Robot Analysis 6 | . 2 . . . 1 . 3 . . . . . Prototype ID Bank 1 | . . . . . . . 1 . . . . . Open Door 4 | . . 1 . . . 1 . . . . 2 . Branch Access Points 1 | . . . . . 1 . . . . . . . Emergency Access Points 1 | . . . . . . 1 . . . . . . Terminal Index 2 | . . . . . . . . 1 . 1 . . Fabricator Index 1 | . . . . . . . . . . 1 . . Alert Level 1 | . . . . . . . . . . . . 1 Unreport Threat 4 | . . . . . . . . 2 . . 1 1 Locate Traps 1 | . . . . . . . . . . 1 . . Reprogram Traps 1 | . . . . . . . . . . 1 . . Recall Investigation 2 | . . . . . . . . 1 . . . 1 Patrol Navigation 1 | . . . . . . 1 . . . . . . Security Stations 1 | . . . . . . 1 . . . . . . Fabricator Hacks 9 | . . . . . . . . 7 . . . 2 Network Status 1 | . . . . . . . . 1 . . . . Load Schematic 4 | . . . . . . . . 3 . . . 1 Build 4 | . . . . . . . . 3 . . . 1 Repair Station Hacks . | . . . . . . . . . . . . . Recycling Unit Hacks . | . . . . . . . . . . . . . Scanalyzer . | . . . . . . . . . . . . . Garrison Access Hacks 5 | . . . . . 1 . 1 . . 2 1 . Unlock Access 1 | . . . . . 1 . . . . . . . Seal Access 4 | . . . . . . . 1 . . 2 1 . Unauthorized Hacks 83 | . 9 1 . 2 14 . 26 17 . 10 3 1 Terminals 70 | . 6 1 . 2 10 . 20 17 . 10 3 1 Track 2 | . . . . . . . 1 1 . . . . Assimilate 6 | . . . . . . . 1 5 . . . . Botnet 31 | . 1 . . . 8 . 7 6 . 6 2 1 Disrupt 1 | . . . . . . . . 1 . . . . Operators 6 | . . . . . 2 . 1 1 . 2 . . Skim 9 | . . . . . . . 4 3 . 2 . . Sabotage 14 | . 5 1 . 2 . . 6 . . . . . Search 1 | . . . . . . . . . . . 1 . Fabricators . | . . . . . . . . . . . . . Repair Stations 3 | . 1 . . . . . 2 . . . . . Patch 3 | . 1 . . . . . 2 . . . . . Recycling Units 8 | . 2 . . . 4 . 2 . . . . . Monitor 1 | . . . . . 1 . . . . . . . Reject 1 | . . . . . 1 . . . . . . . Recyclers 1 | . . . . . 1 . . . . . . . Mask 1 | . . . . . 1 . . . . . . . Tunnel 4 | . 2 . . . . . 2 . . . . . Scanalyzers 2 | . . . . . . . 2 . . . . . Extract 2 | . . . . . . . 2 . . . . . Garrison Access . | . . . . . . . . . . . . . Data Cores Recovered 2 | . . . . . . . . 2 . . . . Used . | . . . . . . . . . . . . . Hacking Detections 40 | . 3 . . . 3 1 4 13 . 9 3 4 Full Trace Events 6 | . . . . . . . 1 3 . 1 . 1 Feedback Events . | . . . . . . . . . . . . . Feedback Blocked . | . . . . . . . . . . . . . Robot Schematics Acquired . | . . . . . . . . . . . . . Robots Built . | . . . . . . . . . . . . . Authchips . | . . . . . . . . . . . . . Time . | . . . . . . . . . . . . . Total Robot Build Rating . | . . . . . . . . . . . . . Part Schematics Acquired 8 | . . . . . . . 7 . . 1 . . Parts Built 5 | . . . . . . . . 3 . . . 2 Authchips . | . . . . . . . . . . . . . Time 201 | . . . . . . . . 154 . . . 47 Total Part Build Rating 19 | . . . . . . . . 9 . . . 10 Part Studies Acquired . | . . . . . . . . . . . . . Parts Repaired . | . . . . . . . . . . . . . Time . | . . . . . . . . . . . . . Parts Recycled . | . . . . . . . . . . . . . Recycled Matter . | . . . . . . . . . . . . . Retrieved Matter . | . . . . . . . . . . . . . Retrieved Components . | . . . . . . . . . . . . . Parts Scanalyzed . | . . . . . . . . . . . . . Part Schematics Acquired . | . . . . . . . . . . . . . Parts Damaged . | . . . . . . . . . . . . . Bothacking | -11 -10 -10 -10 -9 -8 -8 -8 -7 -7 -7 -7 -6 ------------ Run | Yrd Mat Min Exi Min Mat Gar Mat Fac Was Fac Sto Fac Used RIF Installer . | . . . . . . . . . . . . . Robots Hacked . | . . . . . . . . . . . . . Non-combat . | . . . . . . . . . . . . . Combat . | . . . . . . . . . . . . . Robot Hacks Applied . | . . . . . . . . . . . . . Relay Couplers Released 13 | . . . . . . 11 . . . 2 . . Machine Destruction 12 | . . . . . . 10 . . . 2 . . Programmers 1 | . . . . . . 1 . . . . . . Fabnet Peak Effective % . | . . . . . . . . . . . . . Robots Rewired 11 | . . . 5 . . 6 . . . . . . Allies Hacked 1 | . . . . . . . . 1 . . . . Hacks Repelled . | . . . . . . . . . . . . . Allies | -11 -10 -10 -10 -9 -8 -8 -8 -7 -7 -7 -7 -6 -------- Run | Yrd Mat Min Exi Min Mat Gar Mat Fac Was Fac Sto Fac Total Allies 46 | . . . 5 2 . 6 1 2 20 . 10 . Largest Group 19 | . . . 5 5 2 4 4 1 19 19 10 . Highest-Rated Group 475 | . . . 66 66 49 93 93 26 475 475 173 . Highest-Rated Ally 35 | . . . 21 31 31 31 31 26 35 35 29 . Initial Warlord ECA Mod 9 | . . . . . . . 9 8 8 8 8 7 Total Orders 5 | . . . . . . . 3 2 . . . . STAY 3 | . . . . . . . 2 1 . . . . FOLLOW 2 | . . . . . . . 1 1 . . . . Ally Attacks 435 | . . . . 28 5 52 49 4 57 174 66 . Total Damage 7277 | . . . . 294 82 990 884 169 840 3151 867 . Kills 53 | . . . . 4 1 13 9 2 2 15 7 . Allies Corrupted . | . . . . . . . . . . . . . Allies Melted . | . . . . . . . . . . . . . Turrets Deployed 1 | . . . . . . . . 1 . . . . Intel | -11 -10 -10 -10 -9 -8 -8 -8 -7 -7 -7 -7 -6 ------- Run | Yrd Mat Min Exi Min Mat Gar Mat Fac Was Fac Sto Fac Active Infowar (turns) 2129 | 48 902 635 . . . . . . . . . 544 Terrain 1585 | 48 902 635 . . . . . . . . . . Seismic 1547 | 13 902 632 . . . . . . . . . . Triangulation 544 | . . . . . . . . . . . . 544 Robot Analysis Total 6 | . 2 . . . 1 . 3 . . . . . Derelict Logs Recovered 4 | . . 3 . 1 . . . . . . . . Drone Launches . | . . . . . . . . . . . . . Drone Recoveries . | . . . . . . . . . . . . . Exploration | -11 -10 -10 -10 -9 -8 -8 -8 -7 -7 -7 -7 -6 ------------- Run | Yrd Mat Min Exi Min Mat Gar Mat Fac Was Fac Sto Fac Turns Passed 14921 | 128 902 1165 770 1023 1546 1680 1702 2347 298 1260 619 1481 Spaces Moved 13960 | 73 913 590 569 518 906 1026 1911 3710 464 1677 693 910 Core 5 | 5 . . . . . . . . . . . . Treads 1035 | . . . . . . . . . . . 125 910 Legs 3585 | . 81 590 569 518 906 921 . . . . . . Wheels 126 | 68 58 . . . . . . . . . . . Hover 8435 | . . . . . . 105 1911 3710 464 1677 568 . Flight 774 | . 774 . . . . . . . . . . . Fastest Speed 34 | 50 34 120 123 123 122 72 38 38 40 40 40 70 Average Speed 64 | 87 46 120 123 123 122 118 47 39 40 40 46 70 Slowest Speed 150 | 100 140 123 123 123 125 125 132 40 40 40 150 70 Overloaded Moves . | . . . . . . . . . . . . . Propulsion Burnouts . | . . . . . . . . . . . . . Robots Hopped 19 | . 19 . . . . . . . . . . . Potential Cave-ins . | . . . . . . . . . . . . . Cave-ins Triggered . | . . . . . . . . . . . . . Exploration Rate (%) 75 | 4 99 92 89 98 91 82 97 67 95 49 86 27 Regions Visited 12 Branch Regions 4 Pre-discovered Areas 6 | . 2 1 . 1 . . 2 . . . . . Known Exits Taken 3 | . . . . . 1 . 1 . . 1 . . Unknown Exits Taken 6 | 1 1 1 1 1 . . . . . . 1 . Scrap Searched 3 | . . 1 . 2 . . . . . . . . Spaces Dug 6 | . . . . . . . . 5 . . 1 . Terrain Destroyed 554 | . . . . . . . . 9 . 103 161 281 Melee 1 | . . . . . . . . . . . 1 . Projectile 9 | . . . . . . . . 9 . . . . AOE 544 | . . . . . . . . . . 103 160 281 Terrain Rammed . | . . . . . . . . . . . . . Walls Destroyed . | . . . . . . . . . . . . . Machines Disabled . | . . . . . . . . . . . . . Actions | -11 -10 -10 -10 -9 -8 -8 -8 -7 -7 -7 -7 -6 --------- Run | Yrd Mat Min Exi Min Mat Gar Mat Fac Was Fac Sto Fac Total 18645 | 98 1242 979 631 871 1160 1338 2521 4489 552 2170 935 1659 Wait 2814 | . 230 324 9 326 77 125 391 499 32 224 69 508 Move 13909 | 72 874 589 568 517 905 1023 1910 3710 463 1676 692 910 Hop 19 | . 19 . . . . . . . . . . . Pick Up 11 | . 2 1 3 . . . . 1 . 1 . 3 Fast Attach 36 | 7 3 4 . . 3 1 9 3 . 1 4 1 Attach 1 | . . . . . . . . . . . . 1 Detach . | . . . . . . . . . . . . . Swap 70 | . 10 3 . . 14 4 15 14 . 7 3 . Drop 46 | . 4 4 2 . 4 1 8 10 . 1 10 2 Fire 1164 | 19 71 33 5 19 96 84 132 168 53 178 112 194 Melee 3 | . . . . . . . . . . 2 1 . Ram 3 | . . . . . . . . 2 . . 1 . Kick 7 | . . 1 . 2 4 . . . . . . . Crush . | . . . . . . . . . . . . . Escape Stasis 16 | . . . . . . 3 . . . 13 . . Rewire 77 | . . . 44 . . 33 . . . . . . Trap . | . . . . . . . . . . . . . Miscellaneous 469 | . 29 20 . 7 57 64 56 82 4 67 43 40 Route ------- -11/Scrapyard -10/Materials (discovered 5 exits: [*Mat x3] / *Min / [*Sub]) -10/Mines (discovered 2 exits: [*Mat] / *Exi) -10/Exiles -9/Mines (discovered 2 exits: *Mat x2) -8/Materials (discovered 4 exits: *Fac x3 / Gar) -8/Garrison (discovered 3 exits: *Mat x3) -8/Materials (discovered 3 exits: *Fac x3) -7/Factory (discovered 5 exits: *Fac x2 / *Sto / [*Low x2]) -7/Waste -7/Factory (discovered 5 exits: *Fac x4 / *Sto) -7/Storage -6/Factory (discovered 1 exit: [*Fac]) History --------- Turn | Location | Event 1 | -11/Scrapyard | Upgraded with Propulsion slot (x1) 1 | -11/Scrapyard | Upgraded with Utility slot (x1) 1 | -11/Scrapyard | Upgraded with Weapon slot (x1) 10 | -11/Scrapyard | Discovered new exit (range 16) 129 | -11/Scrapyard | Entered Materials 308 | -10/Materials | Build established: Mutant 476 | -10/Materials | Reached level 2 490 | -10/Materials | Upgraded with Power slot (x1) 500 | -10/Materials | Discovered new exit (range 15) 580 | -10/Materials | Discovered new exit (range 6) 615 | -10/Materials | Destroyed 7 combat bots 625 | -10/Materials | Build established: Scavenger-Mutant 696 | -10/Materials | Discovered new exit (range 15) 706 | -10/Materials | Reached level 3 715 | -10/Materials | Upgraded with Propulsion slot (x1) 715 | -10/Materials | Upgraded with Weapon slot (x1) 819 | -10/Materials | Discovered new exit (range 8) 858 | -10/Materials | Discovered new exit (range 10) 889 | -10/Materials | Reached level 4 938 | -10/Materials | Upgraded with Weapon slot (x1) 1031 | -10/Materials | Entered Mines 1169 | -10/Mines | Reached level 5 1240 | -10/Mines | Build established: Gunner 1343 | -10/Mines | A weapon hastily lodged in a ceiling crevice suddenly fell to the ground 1373 | -10/Mines | Learned location of Zion (-6) 1574 | -10/Mines | Learned location of 1 exit from Materials 1629 | -10/Mines | Discovered new exit (range 9) 1640 | -10/Mines | Met a Derelict who couldn't figure out how to use a Trap Extractor 1656 | -10/Mines | Upgraded with Utility slot (x1) 1711 | -10/Mines | Excavation squad dispatched 1711 | -10/Mines | A large section of the Mines collapsed 1955 | -10/Mines | Build established: Tank 2113 | -10/Mines | Deemed a non-threat by the Exiles lab entrance 2114 | -10/Mines | Discovered new exit (range 5) 2147 | -10/Mines | Learned Materials stockpile data 2196 | -10/Mines | Entered Exiles 2196 | -10/Exiles | Found Exiles lab destroyed 2198 | -10/Exiles | Reached level 6 2319 | -10/Exiles | Opened EX-Vault 2422 | -10/Exiles | Found Deploy-a-Sentry 2425 | -10/Exiles | Found Deploy-a-Sentry 2427 | -10/Exiles | Found Deploy-a-Sentry 2939 | -10/Exiles | Build established: Commander-Tank 2947 | -10/Exiles | Discovered new exit (range 10) 2966 | -10/Exiles | Entered Mines 2966 | -9/Mines | Accompanied by 5 allies 2975 | -9/Mines | Assembled infested the area 2980 | -9/Mines | Assisted by a Guerilla fighting off Assembled 3039 | -9/Mines | Lost 5 allies 3054 | -9/Mines | Discovered new exit (range 12) 3166 | -9/Mines | Discovered new exit (range 11) 3177 | -9/Mines | Learned location of Storage (-7) 3281 | -9/Mines | Build established: Tank 3335 | -9/Mines | Learned Materials interactive machine intel 3633 | -9/Mines | Reached level 7 3922 | -9/Mines | Upgraded with Utility slot (x1) 3989 | -9/Mines | Entered Materials 3989 | -8/Materials | Accompanied by 2 allies 3990 | -8/Materials | Identified exit to Factory 3991 | -8/Materials | Reached level 8 3992 | -8/Materials | Loaded intel: 19 interactive machine locations 3998 | -8/Materials | Led the pair of lost Derelicts to an unsafe place 4204 | -8/Materials | Upgraded with Utility slot (x1) 4306 | -8/Materials | Reached level 9 4341 | -8/Materials | Destroyed 11 combat bots 4343 | -8/Materials | Upgraded with Propulsion slot (x1) 4526 | -8/Materials | Reached level 10 4570 | -8/Materials | Discovered exit to Factory (range 14) 4965 | -8/Materials | Build established: Hacker-Tank 5171 | -8/Materials | Reached level 11 5377 | -8/Materials | Garrison activated, responded to threat 5428 | -8/Materials | Core integrity fell below 50% 5464 | -8/Materials | Discovered exit to Factory (range 11) 5534 | -8/Materials | Identified exit to Garrison 5535 | -8/Materials | Entered Garrison 5537 | -8/Garrison | Reached level 12 5633 | -8/Garrison | Triggered checkpoint 5810 | -8/Garrison | Build established: Scavenger-Tank 5845 | -8/Garrison | Discovered new exit (range 12) 5851 | -8/Garrison | Triggered checkpoint 5913 | -8/Garrison | Triggered checkpoint 6057 | -8/Garrison | Triggered checkpoint 6061 | -8/Garrison | Garrison Relay disabled 6080 | -8/Garrison | Reached level 13 6124 | -8/Garrison | Learned Materials security intel 6162 | -8/Garrison | Upgraded with Propulsion slot (x1) 6162 | -8/Garrison | Upgraded with Utility slot (x1) 6167 | -8/Garrison | Triggered checkpoint 6171 | -8/Garrison | Triggered checkpoint 6182 | -8/Garrison | Triggered checkpoint 6305 | -8/Garrison | Discovered new exit (range 10) 6391 | -8/Garrison | Triggered checkpoint 6424 | -8/Garrison | Garrison Relay disabled 6541 | -8/Garrison | Discovered new exit (range 10) 6569 | -8/Garrison | Triggered checkpoint 6588 | -8/Garrison | Garrison Relay disabled 6631 | -8/Garrison | Attempted to access garrison exit controls, blocked by remote lockdown 6810 | -8/Garrison | Garrison Relay disabled 6866 | -8/Garrison | Garrison Relay disabled 6867 | -8/Garrison | Triggered checkpoint 7051 | -8/Garrison | Attempted to access garrison exit controls, blocked by remote lockdown 7215 | -8/Garrison | Entered Materials 7215 | -8/Materials | Accompanied by 4 allies 7302 | -8/Materials | Discovered exit to Factory (range 10) 7356 | -8/Materials | Reached level 14 7583 | -8/Materials | Garrison activated, responded to threat 7670 | -8/Materials | Discovered exit to Factory (range 15) 7826 | -8/Materials | Discovered exit to Factory (range 3) 8415 | -8/Materials | First assault squad dispatched 8450 | -8/Materials | Reached level 15 8491 | -8/Materials | Sterilization system engaged 8491 | -8/Materials | Non-combat units ordered to evacuate 8544 | -8/Materials | Destroyed 16 combat bots 8591 | -8/Materials | Combat units ordered to evacuate 8791 | -8/Materials | Ambient heat levels rising (+10) 8917 | -8/Materials | Entered Factory 8917 | -7/Factory | Accompanied by 1 ally 8929 | -7/Factory | Discovered new exit (range 15) 9378 | -7/Factory | Build established: Scavenger-Gunner 9414 | -7/Factory | Discovered new exit (range 8) 9447 | -7/Factory | Reached level 16 9454 | -7/Factory | Core integrity fell below 50% 9477 | -7/Factory | Upgraded with Utility slot (x1) 9548 | -7/Factory | Discovered new exit (range 10) 9630 | -7/Factory | Discovered new exit (range 15) 9708 | -7/Factory | DAS Turret deployed 9809 | -7/Factory | Fabricated Enh. Autogun (x1) 9846 | -7/Factory | Destroyed 7 combat bots 9902 | -7/Factory | Fabricated Enh. Autogun (x1) 9991 | -7/Factory | Fabricated Enh. Autogun (x1) 10117 | -7/Factory | First assault squad dispatched 10238 | -7/Factory | Discovered new exit (range 14) 10345 | -7/Factory | Reached level 17 11233 | -7/Factory | High security lockdown imminent 11264 | -7/Factory | Sucked down chute 11264 | -7/Factory | Entered Waste 11265 | -7/Waste | Met a frightened Derelict 11268 | -7/Waste | Spotted C-40 Crusher 11269 | -7/Waste | Spotted C-40 Crusher 11276 | -7/Waste | Spotted C-40 Crusher 11281 | -7/Waste | Spotted C-40 Crusher 11290 | -7/Waste | Spotted C-40 Crusher 11350 | -7/Waste | Destroyed C-40 Crusher 11354 | -7/Waste | Destroyed C-40 Crusher 11382 | -7/Waste | Destroyed C-40 Crusher 11406 | -7/Waste | Destroyed C-40 Crusher 11408 | -7/Waste | Spotted C-40 Crusher 11421 | -7/Waste | Destroyed C-40 Crusher 11433 | -7/Waste | Discovered new exit (range 16) 11446 | -7/Waste | Warlord forces began an assault 11562 | -7/Waste | Entered Factory 11562 | -7/Factory | Accompanied by 19 allies 11626 | -7/Factory | Garrison activated, responded to threat 11629 | -7/Factory | P-60 Hacker assimilated allied VD-3OD(s) 11665 | -7/Factory | Allied Derelicts emerged from ambush trap array 11709 | -7/Factory | Found Prototype Launcher 11709 | -7/Factory | Identified Rocket Array 11763 | -7/Factory | Discovered new exit (range 5) 11914 | -7/Factory | Discovered new exit (range 4) 11962 | -7/Factory | First assault squad dispatched 12006 | -7/Factory | Reached level 18 12037 | -7/Factory | Lost 4 allies 12059 | -7/Factory | Destroyed 7 combat bots 12072 | -7/Factory | Discovered new exit (range 12) 12174 | -7/Factory | High security lockdown imminent 12206 | -7/Factory | Discovered new exit (range 4) 12213 | -7/Factory | Garrison activated, responded to threat 12244 | -7/Factory | Destroyed 15 combat bots 12254 | -7/Factory | High security lockdown engaged 12321 | -7/Factory | Reached level 19 12322 | -7/Factory | Upgraded with Utility slot (x1) 12361 | -7/Factory | Destroyed 18 combat bots 12361 | -7/Factory | Discovered new exit (range 14) 12364 | -7/Factory | Lost 10 allies 12557 | -7/Factory | Identified exit to Storage 12675 | -7/Factory | Destroyed 33 combat bots 12705 | -7/Factory | Destroyed 12 combat bots 12791 | -7/Factory | Sterilization system engaged 12791 | -7/Factory | Non-combat units ordered to evacuate 12815 | -7/Factory | Destroyed 17 combat bots 12822 | -7/Factory | Entered Storage 12984 | -7/Storage | Unchained authorized (DW-4LL) 13045 | -7/Storage | Assisted by bots powering up and referring to "LRC-V3" 13090 | -7/Storage | Destroyed 7 combat bots 13118 | -7/Storage | Reached level 20 13118 | -7/Storage | High security lockdown imminent 13135 | -7/Storage | Discovered new exit (range 17) 13143 | -7/Storage | Met 01-MTF 13181 | -7/Storage | DW-4LL burst out of a wall 13191 | -7/Storage | Core integrity fell below 20% 13198 | -7/Storage | High security lockdown engaged 13217 | -7/Storage | Destroyed DW-4LL 13220 | -7/Storage | Found Prototype Device 13220 | -7/Storage | Identified Exp. Weapon Cycler 13235 | -7/Storage | Found Prototype Processor 13235 | -7/Storage | Identified Exp. Armor Integrity Analyzer 13241 | -7/Storage | Found Prototype Treads 13241 | -7/Storage | Identified DW-4LL's Griptreads 13245 | -7/Storage | Found Corrupted DW-4LL's Griptreads 13246 | -7/Storage | System corruption reached 10% 13248 | -7/Storage | Found Prototype Protection 13248 | -7/Storage | Identified DW-4LL's Blast Wall 13315 | -7/Storage | Lost 6 allies 13320 | -7/Storage | Destroyed 13 combat bots 13372 | -7/Storage | Destroyed 17 combat bots 13436 | -7/Storage | Destroyed 7 combat bots 13441 | -7/Storage | Entered Factory 13791 | -6/Factory | First assault squad dispatched 13847 | -6/Factory | Core integrity fell below 50% 14228 | -6/Factory | High security lockdown imminent 14249 | -6/Factory | Destroyed 8 combat bots 14289 | -6/Factory | Fabricated Triangulator (x2) 14308 | -6/Factory | High security lockdown engaged 14364 | -6/Factory | Discovered new exit (range 16) 14372 | -6/Factory | Reached level 21 14378 | -6/Factory | Upgraded with Utility slot (x1) 14540 | -6/Factory | Destroyed 14 combat bots 14585 | -6/Factory | Core integrity fell below 20% 14666 | -6/Factory | Destroyed 20 combat bots 14674 | -6/Factory | Garrison activated, responded to threat 14730 | -6/Factory | Destroyed 17 combat bots 14842 | -6/Factory | Reached level 22 14875 | -6/Factory | System corruption reached 10% 14922 | -6/Factory | Destroyed by H-66 Slayer with Gauss Rifle Last Messages --------------- 14913_ Med. Reactive Plating destroyed. 14916_ Acquired 7 matter. 14917_ C-45 Heavy ARC bursts open, deploying its payload. 14917_ H-66 Slayer unfolds itself. 14917_ I-36 Angel unfolds itself. 14917_ Penetrated by Slug. 14917_ Slug penetrates Wall. 14917_ Slug penetrates Earth. 14917_ C-45 Heavy ARC bursts open, deploying its payload. 14917_ G-67 Veteran unfolds itself. 14917_ B-48 Gladiator unfolds itself. 14917_ G-50 Soldier unfolds itself. 14917_ M-28 Smith unfolds itself. 14918_ Penetrated by Slug. 14918_ Slug penetrates Repair Station. 14921_ Penetrated by Slug. 14922_ Slug penetrates B-48 Gladiator. 14922_ Penetrated by Slug. Map ----- +----------------------------------------------------+ | ??????# * # [+*%% | | ??????# ###### ! #%[= | | ??????# * # ## ## #=* | | ??????#! !!!// # # [ | | ??????# [=%* # | | ??????#### #/# ##! *! !! | | ?????????#####=### ! [ !! | | ?????????????#!## [*% !=" " ! % | | ?????????????#[####=i % "%" " # | | ?????????????#%##%!%[ " " "" | | ?????????????#=h=h!h%[%" %h "" | | ?????????????#######! " h] "" # | | ???????????????????#h h] ! | | ???????????????????# # m # = | | ??????############## i #!% | | ??????# ## ### % h %h # | | ??????# ! ## # ## h ?# | | ??????# # % =% % ??# | | ??????# !!! # =% "??# | | ??????# !!! # ^= "???# | | ??????# !! / === *% ????# | | ??????# = # ^ != ???# | | ??????# # "" =%* ??# | | ??????# # """ b [m ;####+### | | ??????# # "Rm ! gb | | ??????# # """@ g% | | ??????# # """ w | | ??????############## | | ???????????????????# ! | | ???????????????????###########+################# | | ???????????????????????????? ??????????????# | | ??????????????????????????# "" ????????????# | | ??????????????????????????# "G #???????????# | | ??????????????????????????# "" #???????????# | | ??????????????????????????# #???????????+ | | ??????????????????????????# """ #???????????# | | ??????????????????????????# """"" #???????????# | | ??????????????????????????# """"" #???????????# | | ###???????????????????????# #???????????# | | #????????????????????########??########??????# | | #???????????????????? #????# #?????# | | #????????????????"?" " " " " #????# #?????# | | #??????????????# " " " " " " #????# #?????# | | #??????????????# " " " " " " #????# #?????### | | #??????????????# " " " " " " #????# ######### | | #??????????????# " " " " " " #????# # """ | | #??????????????# " " " " " " #????# # "Y" | | #??????????????# " " " " " " #????# # " " | | #??????????????# " " " " " " #?????? # | | #??????????????# " " " " " " #########+# ! | +----------------------------------------------------+ Best States ------------- Heat Dissipation 116 Energy Generation 24 Energy Capacity 340 Matter Stores 600 Matter Capacity 600 Sight Range 18 Terrain Scan Range 16 Terrain Scan Density 10 Armor Coverage 5700 Resistance: KI 30 Resistance: TH 15 Resistance: EX 75 Weapon Cycling 30 Evasion (%) 63 Armor Integrity Analysis 50 Recoil Reduction 4 Offensive Hacking 36 Defensive Hacking 15 Item Schematics ----------------- Enh. Autogun | -8/Materials | Hacked Terrain Scanner | -8/Materials | Extracted Reactive Plating | -8/Materials | Extracted Rocket Launcher | -8/Materials | Extracted Lgt. Treads | -8/Materials | Extracted Lgt. Assault Rifle | -8/Materials | Extracted Imp. Hover Unit | -8/Materials | Extracted Triangulator | -7/Factory | Hacked Robot Schematics ------------------ None Fabricated ------------ Enh. Autogun | x1 | -7/Factory Enh. Autogun | x1 | -7/Factory Enh. Autogun | x1 | -7/Factory Triangulator | x2 | -6/Factory Repaired ---------- Nothing Studied --------- None Alien Tech Used ----------------- None Achievements -------------- None Challenges ------------ None RPGLIKE | -11 -10 -10 -10 -9 -8 -8 -8 -7 -7 -7 -7 -6 --------- Run | Yrd Mat Min Exi Min Mat Gar Mat Fac Was Fac Sto Fac Levels Raised 21 | . 3 1 1 1 4 2 2 2 . 2 1 2 XP Earned 34674 | 3000 4676 2764 139 1950 6822 2839 2229 3308 103 3127 944 2773 XP Spent 34375 | 2960 4540 800 750 1820 3500 6175 750 4700 . 3800 300 4280 Upgrades 73 | 10 8 1 1 5 5 10 3 7 . 4 6 13 Power Slot 1 | . 1 . . . . . . . . . . . Propulsion Slot 4 | 1 1 . . . 1 1 . . . . . . Utility Slot 8 | 1 . 1 . 1 1 1 . 1 . 1 . 1 Weapon Slot 3 | 1 2 . . . . . . . . . . . Core Integrity 18 | . . . . . . . . . . . 6 12 Heat Dissipation 12 | 3 2 . . 4 . . 3 . . . . . Matter Storage 6 | . . . . . . 6 . . . . . . Mass Support 3 | 1 . . . . 1 . . . . 1 . . Inventory Capacity 3 | 2 . . 1 . . . . . . . . . Sight Range 2 | . . . . . . . . . . 2 . . Ranged Accuracy 6 | 1 2 . . . . 2 . 1 . . . . Hack Attack % 2 | . . . . . 1 . . 1 . . . . Hack Defense % 2 | . . . . . 1 . . 1 . . . . KI Damage % 2 | . . . . . . . . 2 . . . . TH Damage % 1 | . . . . . . . . 1 . . . . Protomatter Created 6811 | . 524 210 . 101 784 441 700 805 271 1049 842 1084 Integrity Restored 9194 | . 463 368 . 123 1024 1356 1197 1613 63 1225 874 888 Core 6773 | . 373 228 . 110 663 907 1013 992 33 818 748 888 Parts 2421 | . 90 140 . 13 361 449 184 621 30 407 126 . Protomatter Decayed 2751 | . 214 101 . 36 375 59 201 179 69 937 280 300 Game ------ Seed ChargeMiningBiocell Manual? 0 Play Time 02:20:56 Cumulative 499.1 hours Start 2025.12.19 @ 07:13:29 End 2025.12.19 @ 20:40:32 Sessions 5 Manual Loads 0 Difficulty Rogue Special Mode Winter2019/RPGLIKE Game No. 187 Rogue 33 Adventurer 154 Explorer 0 Win Type - Total 20 Types 4/4/3/3/2/1/0/1/1/1 Lore% 94 Gallery% 86 Achievement% 61 Wizard Run 0 Options --------- Layout 2 ASCII 0 Keyboard 0 Movement Numpad Keybinds 0 Fullscreen 2 Font 24/Smallcaps Map View 50x44 Zoom Use 0% Tactical HUD 1 Map Filters NONE Filters NONE Steam 1 RUN: 774f30a3-9d25-4880-b0fb-88a12ca93a98